Workbook

Sheet Sheet1
A1: a | B1: b | C1: aa | D1: bb | F1: sa | G1: sb | H1: saa | I1: sbb | K1: =(2*RAND()-1)/$K$2 -> -0.05041366256 | L1: =STDEV(A:A) -> 0.5722234469 | M1: =STDEV(C:C) -> 0.1778933483
A2: =RAND()*2-1 -> 0.4534779298 | B2: =RAND()*2-1 -> -0.1424369973 | C2: =(A2+$K$1)*$K$3 -> 0.1253049879 | D2: =(B2+$K$1)*$K$3 -> -0.05995358944 | E2: 1 | F2: =SUM(A$2:A2) -> 0.4534779298 | G2: =SUM(B$2:B2) -> -0.1424369973 | H2: =SUM(C$2:C2) -> 0.1253049879 | I2: =SUM(D$2:D2) -> -0.05995358944 | K2: 7
A3: =RAND()*2-1 -> -0.004740691924 | B3: -0.6078109749 | C3: =(A3+$K$1)*$K$3 -> -0.01714643614 | D3: =(B3+$K$1)*$K$3 -> -0.204629477 | E3: 2 | F3: =SUM(A$2:A3) -> 0.4487372378 | G3: =SUM(B$2:B3) -> -0.7502479723 | H3: =SUM(C$2:C3) -> 0.1081585517 | I3: =SUM(D$2:D3) -> -0.2645830665 | K3: =$K$2/( $K$2+1+499 )^0.5 -> 0.3108809142
A4: -0.9603880526 | B4: -0.6058183448 | C4: -0.3142389613 | D4: -0.2040100064 | E4: 3 | F4: =SUM(A$2:A4) -> -0.5116508148 | G4: =SUM(B$2:B4) -> -1.356066317 | H4: =SUM(C$2:C4) -> -0.2060804096 | I4: =SUM(D$2:D4) -> -0.4685930729
A5: 0.1529675169 | B5: -0.4722211812 | C5: 0.03188203599 | D5: -0.162477198 | E5: 4 | F5: =SUM(A$2:A5) -> -0.3586832979 | G5: =SUM(B$2:B5) -> -1.828287498 | H5: =SUM(C$2:C5) -> -0.1741983736 | I5: =SUM(D$2:D5) -> -0.6310702709 | K5: correlation
A6: 0.5321153675 | B6: 0.3710545498 | C6: 0.1497518664 | D6: 0.09968113216 | E6: 5 | F6: =SUM(A$2:A6) -> 0.1734320696 | G6: =SUM(B$2:B6) -> -1.457232948 | H6: =SUM(C$2:C6) -> -0.02444650716 | I6: =SUM(D$2:D6) -> -0.5313891387 | K6: =CORREL(C:C,D:D) -> -0.0220649708
A7: 0.3381383252 | B7: 0.4264315373 | C7: 0.08944810616 | D7: 0.1168967806 | E7: 6 | F7: =SUM(A$2:A7) -> 0.5115703949 | G7: =SUM(B$2:B7) -> -1.030801411 | H7: =SUM(C$2:C7) -> 0.065001599 | I7: =SUM(D$2:D7) -> -0.4144923581
A8: 0.4620946083 | B8: 0.7519132851 | C8: 0.1279837488 | D8: 0.218082844 | E8: 7 | F8: =SUM(A$2:A8) -> 0.9736650031 | G8: =SUM(B$2:B8) -> -0.2788881261 | H8: =SUM(C$2:C8) -> 0.1929853478 | I8: =SUM(D$2:D8) -> -0.1964095141
A9: 0.1026332068 | B9: -0.7456675375 | C9: 0.01623405966 | D9: -0.2474864512 | E9: 8 | F9: =SUM(A$2:A9) -> 1.07629821 | G9: =SUM(B$2:B9) -> -1.024555664 | H9: =SUM(C$2:C9) -> 0.2092194074 | I9: =SUM(D$2:D9) -> -0.4438959653
A10: 0.2414972971 | B10: -0.9850763504 | C10: 0.059404255 | D10: -0.3219140818 | E10: 9 | F10: =SUM(A$2:A10) -> 1.317795507 | G10: =SUM(B$2:B10) -> -2.009632014 | H10: =SUM(C$2:C10) -> 0.2686236624 | I10: =SUM(D$2:D10) -> -0.7658100472
A11: 0.453145545 | B11: 0.7558208385 | C11: 0.1252016558 | D11: 0.2192976277 | E11: 10 | F11: =SUM(A$2:A11) -> 1.770941052 | G11: =SUM(B$2:B11) -> -1.253811175 | H11: =SUM(C$2:C11) -> 0.3938253182 | I11: =SUM(D$2:D11) -> -0.5465124194
A12: 0.1904033601 | B12: 0.9105772818 | C12: 0.04352012516 | D12: 0.2674084523 | E12: 11 | F12: =SUM(A$2:A12) -> 1.961344412 | G12: =SUM(B$2:B12) -> -0.3432338936 | H12: =SUM(C$2:C12) -> 0.4373454433 | I12: =SUM(D$2:D12) -> -0.2791039671
A13: 0.32098525 | B13: -0.0224011001 | C13: 0.08411554245 | D13: -0.02263671998 | E13: 12 | F13: =SUM(A$2:A13) -> 2.282329662 | G13: =SUM(B$2:B13) -> -0.3656349937 | H13: =SUM(C$2:C13) -> 0.5214609858 | I13: =SUM(D$2:D13) -> -0.3017406871
A14: -0.2913192063 | B14: -0.143625342 | C14: -0.1062382267 | D14: -0.06032302312 | E14: 13 | F14: =SUM(A$2:A14) -> 1.991010456 | G14: =SUM(B$2:B14) -> -0.5092603357 | H14: =SUM(C$2:C14) -> 0.4152227591 | I14: =SUM(D$2:D14) -> -0.3620637102
A15: 0.9582777834 | B15: 0.3053245564 | C15: 0.2822376278 | D15: 0.0792469317 | E15: 14 | F15: =SUM(A$2:A15) -> 2.949288239 | G15: =SUM(B$2:B15) -> -0.2039357793 | H15: =SUM(C$2:C15) -> 0.6974603869 | I15: =SUM(D$2:D15) -> -0.2828167785
A16: 0.8851781765 | B16: 0.1081641604 | C16: 0.2595123552 | D16: 0.01795352755 | E16: 15 | F16: =SUM(A$2:A16) -> 3.834466416 | G16: =SUM(B$2:B16) -> -0.09577161895 | H16: =SUM(C$2:C16) -> 0.9569727422 | I16: =SUM(D$2:D16) -> -0.264863251
A17: 0.1405856265 | B17: -0.900173465 | C17: 0.02803274257 | D17: -0.2955193952 | E17: 16 | F17: =SUM(A$2:A17) -> 3.975052042 | G17: =SUM(B$2:B17) -> -0.995945084 | H17: =SUM(C$2:C17) -> 0.9850054847 | I17: =SUM(D$2:D17) -> -0.5603826462
A18: -0.01874000406 | B18: -0.4281154618 | C18: -0.0214985551 | D18: -0.1487655716 | E18: 17 | F18: =SUM(A$2:A18) -> 3.956312038 | G18: =SUM(B$2:B18) -> -1.424060546 | H18: =SUM(C$2:C18) -> 0.9635069296 | I18: =SUM(D$2:D18) -> -0.7091482179
A19: -0.9860011676 | B19: 0.955675313 | C19: -0.3222015899 | D19: 0.2814285694 | E19: 18 | F19: =SUM(A$2:A19) -> 2.970310871 | G19: =SUM(B$2:B19) -> -0.4683852328 | H19: =SUM(C$2:C19) -> 0.6413053398 | I19: =SUM(D$2:D19) -> -0.4277196484
A20: 0.1189077058 | B20: 0.5253520377 | C20: 0.02129349077 | D20: 0.1476492763 | E20: 19 | F20: =SUM(A$2:A20) -> 3.089218576 | G20: =SUM(B$2:B20) -> 0.05696680495 | H20: =SUM(C$2:C20) -> 0.6625988305 | I20: =SUM(D$2:D20) -> -0.2800703722
A21: 0.4073309388 | B21: 0.4179694194 | C21: 0.1109587691 | D21: 0.1142660697 | E21: 20 | F21: =SUM(A$2:A21) -> 3.496549515 | G21: =SUM(B$2:B21) -> 0.4749362243 | H21: =SUM(C$2:C21) -> 0.7735575997 | I21: =SUM(D$2:D21) -> -0.1658043025
A22: 0.3168386306 | B22: 0.7271581463 | C22: 0.08282643763 | D22: 0.2103869438 | E22: 21 | F22: =SUM(A$2:A22) -> 3.813388146 | G22: =SUM(B$2:B22) -> 1.202094371 | H22: =SUM(C$2:C22) -> 0.8563840373 | I22: =SUM(D$2:D22) -> 0.04458264131
A23: -0.3949614359 | B23: 0.956848631 | C23: -0.1384586178 | D23: 0.2817933316 | E23: 22 | F23: =SUM(A$2:A23) -> 3.41842671 | G23: =SUM(B$2:B23) -> 2.158943002 | H23: =SUM(C$2:C23) -> 0.7179254196 | I23: =SUM(D$2:D23) -> 0.3263759729
A24: -0.2606607796 | B24: 0.1792916358 | C24: -0.09670710695 | D24: 0.04006570215 | E24: 23 | F24: =SUM(A$2:A24) -> 3.15776593 | G24: =SUM(B$2:B24) -> 2.338234637 | H24: =SUM(C$2:C24) -> 0.6212183126 | I24: =SUM(D$2:D24) -> 0.3664416751
A25: 0.03259302678 | B25: -0.4384347903 | C25: -0.005540095541 | D25: -0.1519736539 | E25: 24 | F25: =SUM(A$2:A25) -> 3.190358957 | G25: =SUM(B$2:B25) -> 1.899799847 | H25: =SUM(C$2:C25) -> 0.6156782171 | I25: =SUM(D$2:D25) -> 0.2144680212
A26: -0.7602387841 | B26: -0.7840104506 | C26: -0.2520163737 | D26: -0.2594065311 | E26: 25 | F26: =SUM(A$2:A26) -> 2.430120173 | G26: =SUM(B$2:B26) -> 1.115789397 | H26: =SUM(C$2:C26) -> 0.3636618434 | I26: =SUM(D$2:D26) -> -0.04493850995
A27: 0.1057497334 | B27: 0.5313220107 | C27: 0.0172029283 | D27: 0.1495052269 | E27: 26 | F27: =SUM(A$2:A27) -> 2.535869906 | G27: =SUM(B$2:B27) -> 1.647111407 | H27: =SUM(C$2:C27) -> 0.3808647717 | I27: =SUM(D$2:D27) -> 0.1045667169
A28: -0.5267064486 | B28: -0.2750912359 | C28: -0.1794156277 | D28: -0.1011932604 | E28: 27 | F28: =SUM(A$2:A28) -> 2.009163458 | G28: =SUM(B$2:B28) -> 1.372020171 | H28: =SUM(C$2:C28) -> 0.2014491439 | I28: =SUM(D$2:D28) -> 0.003373456562
A29: -0.2248042325 | B29: 0.7934824931 | C29: -0.08555999081 | D29: 0.2310059173 | E29: 28 | F29: =SUM(A$2:A29) -> 1.784359225 | G29: =SUM(B$2:B29) -> 2.165502664 | H29: =SUM(C$2:C29) -> 0.1158891531 | I29: =SUM(D$2:D29) -> 0.2343793739
A30: -0.6172746092 | B30: 0.4179873175 | C30: -0.2075715403 | D30: 0.1142716339 | E30: 29 | F30: =SUM(A$2:A30) -> 1.167084616 | G30: =SUM(B$2:B30) -> 2.583489982 | H30: =SUM(C$2:C30) -> -0.0916823872 | I30: =SUM(D$2:D30) -> 0.3486510078
A31: 0.05736254022 | B31: 0.1390914588 | C31: 0.002160273441 | D31: 0.02756823436 | E31: 30 | F31: =SUM(A$2:A31) -> 1.224447156 | G31: =SUM(B$2:B31) -> 2.722581441 | H31: =SUM(C$2:C31) -> -0.08952211375 | I31: =SUM(D$2:D31) -> 0.3762192421
A32: -0.180614936 | B32: -0.9509872919 | C32: -0.07182238193 | D32: -0.3113164442 | E32: 31 | F32: =SUM(A$2:A32) -> 1.04383222 | G32: =SUM(B$2:B32) -> 1.771594149 | H32: =SUM(C$2:C32) -> -0.1613444957 | I32: =SUM(D$2:D32) -> 0.06490279798
A33: -0.2077658582 | B33: 0.8561477446 | C33: -0.08026308545 | D33: 0.250487348 | E33: 32 | F33: =SUM(A$2:A33) -> 0.8360663621 | G33: =SUM(B$2:B33) -> 2.627741894 | H33: =SUM(C$2:C33) -> -0.2416075811 | I33: =SUM(D$2:D33) -> 0.315390146
A34: 0.3958818645 | B34: -0.3148624067 | C34: 0.1073994705 | D34: -0.1135573583 | E34: 33 | F34: =SUM(A$2:A34) -> 1.231948227 | G34: =SUM(B$2:B34) -> 2.312879487 | H34: =SUM(C$2:C34) -> -0.1342081107 | I34: =SUM(D$2:D34) -> 0.2018327877
A35: -0.6763269637 | B35: -0.2017818145 | C35: -0.2259297903 | D35: -0.07840276044 | E35: 34 | F35: =SUM(A$2:A35) -> 0.555621263 | G35: =SUM(B$2:B35) -> 2.111097672 | H35: =SUM(C$2:C35) -> -0.3601379009 | I35: =SUM(D$2:D35) -> 0.1234300272
A36: -0.4321762223 | B36: 0.2674396696 | C36: -0.1500279846 | D36: 0.06746924346 | E36: 35 | F36: =SUM(A$2:A36) -> 0.1234450406 | G36: =SUM(B$2:B36) -> 2.378537342 | H36: =SUM(C$2:C36) -> -0.5101658855 | I36: =SUM(D$2:D36) -> 0.1908992707
A37: 0.3111633351 | B37: 0.3559968764 | C37: 0.08106209657 | D37: 0.09499998888 | E37: 36 | F37: =SUM(A$2:A37) -> 0.4346083757 | G37: =SUM(B$2:B37) -> 2.734534218 | H37: =SUM(C$2:C37) -> -0.429103789 | I37: =SUM(D$2:D37) -> 0.2858992596
A38: 0.9438527579 | B38: 0.002122628737 | C38: 0.2777531627 | D38: -0.01501276074 | E38: 37 | F38: =SUM(A$2:A38) -> 1.378461134 | G38: =SUM(B$2:B38) -> 2.736656847 | H38: =SUM(C$2:C38) -> -0.1513506262 | I38: =SUM(D$2:D38) -> 0.2708864988
A39: 0.1396343934 | B39: -0.2964258302 | C39: 0.02773702238 | D39: -0.1078257786 | E39: 38 | F39: =SUM(A$2:A39) -> 1.518095527 | G39: =SUM(B$2:B39) -> 2.440231017 | H39: =SUM(C$2:C39) -> -0.1236136039 | I39: =SUM(D$2:D39) -> 0.1630607202
A40: -0.9225789495 | B40: -0.04452545409 | C40: -0.3024848327 | D40: -0.02951475937 | E40: 39 | F40: =SUM(A$2:A40) -> 0.5955165775 | G40: =SUM(B$2:B40) -> 2.395705563 | H40: =SUM(C$2:C40) -> -0.4260984366 | I40: =SUM(D$2:D40) -> 0.1335459609
A41: 0.54409583 | B41: -0.5593770915 | C41: 0.1534763635 | D41: -0.1895723071 | E41: 40 | F41: =SUM(A$2:A41) -> 1.139612408 | G41: =SUM(B$2:B41) -> 1.836328471 | H41: =SUM(C$2:C41) -> -0.2726220731 | I41: =SUM(D$2:D41) -> -0.05602634622
A42: 0.4037785546 | B42: 0.3211546488 | C42: 0.1098544007 | D42: 0.08416820532 | E42: 41 | F42: =SUM(A$2:A42) -> 1.543390962 | G42: =SUM(B$2:B42) -> 2.15748312 | H42: =SUM(C$2:C42) -> -0.1627676724 | I42: =SUM(D$2:D42) -> 0.0281418591
A43: -0.08822448085 | B43: 0.3638097045 | C43: -0.04309995276 | D43: 0.09742884802 | E43: 42 | F43: =SUM(A$2:A43) -> 1.455166481 | G43: =SUM(B$2:B43) -> 2.521292825 | H43: =SUM(C$2:C43) -> -0.2058676251 | I43: =SUM(D$2:D43) -> 0.1255707071
A44: -0.2203353001 | B44: 0.1809783628 | C44: -0.08417068504 | D44: 0.04059007336 | E44: 43 | F44: =SUM(A$2:A44) -> 1.234831181 | G44: =SUM(B$2:B44) -> 2.702271187 | H44: =SUM(C$2:C44) -> -0.2900383102 | I44: =SUM(D$2:D44) -> 0.1661607805
A45: 0.1959110667 | B45: 0.290463478 | C45: 0.04523236602 | D45: 0.07462690608 | E45: 44 | F45: =SUM(A$2:A45) -> 1.430742248 | G45: =SUM(B$2:B45) -> 2.992734665 | H45: =SUM(C$2:C45) -> -0.2448059442 | I45: =SUM(D$2:D45) -> 0.2407876866
A46: -0.845839447 | B46: -0.9689152232 | C46: -0.278627986 | D46: -0.3168898959 | E46: 45 | F46: =SUM(A$2:A46) -> 0.5849028009 | G46: =SUM(B$2:B46) -> 2.023819442 | H46: =SUM(C$2:C46) -> -0.5234339302 | I46: =SUM(D$2:D46) -> -0.07610220929
A47: -0.8706381703 | B47: 0.8751163394 | C47: -0.2863374358 | D47: 0.2563843221 | E47: 46 | F47: =SUM(A$2:A47) -> -0.2857353694 | G47: =SUM(B$2:B47) -> 2.898935782 | H47: =SUM(C$2:C47) -> -0.809771366 | I47: =SUM(D$2:D47) -> 0.1802821128
A48: 0.3929633716 | B48: -0.3595787537 | C48: 0.1064921667 | D48: -0.1274588172 | E48: 47 | F48: =SUM(A$2:A48) -> 0.1072280023 | G48: =SUM(B$2:B48) -> 2.539357028 | H48: =SUM(C$2:C48) -> -0.7032791993 | I48: =SUM(D$2:D48) -> 0.05282329566
A49: -0.2173306241 | B49: 0.4695903238 | C49: -0.08323658861 | D49: 0.1303140237 | E49: 48 | F49: =SUM(A$2:A49) -> -0.1101026218 | G49: =SUM(B$2:B49) -> 3.008947352 | H49: =SUM(C$2:C49) -> -0.7865157879 | I49: =SUM(D$2:D49) -> 0.1831373193
A50: -0.479192018 | B50: -0.9958733578 | C50: -0.1646442981 | D50: -0.3252706654 | E50: 49 | F50: =SUM(A$2:A50) -> -0.5892946398 | G50: =SUM(B$2:B50) -> 2.013073994 | H50: =SUM(C$2:C50) -> -0.951160086 | I50: =SUM(D$2:D50) -> -0.1421333461
A51: -0.9315781726 | B51: -0.2242756428 | C51: -0.3052825194 | D51: -0.08539566235 | E51: 50 | F51: =SUM(A$2:A51) -> -1.520872812 | G51: =SUM(B$2:B51) -> 1.788798351 | H51: =SUM(C$2:C51) -> -1.256442605 | I51: =SUM(D$2:D51) -> -0.2275290084
A52: -0.7434471093 | B52: 0.3284912998 | C52: -0.2467961625 | D52: 0.08644903007 | E52: 51 | F52: =SUM(A$2:A52) -> -2.264319922 | G52: =SUM(B$2:B52) -> 2.117289651 | H52: =SUM(C$2:C52) -> -1.503238768 | I52: =SUM(D$2:D52) -> -0.1410799783
A53: -0.8211156384 | B53: -0.3643195802 | C53: -0.2709418258 | D53: -0.1289326497 | E53: 52 | F53: =SUM(A$2:A53) -> -3.08543556 | G53: =SUM(B$2:B53) -> 1.752970071 | H53: =SUM(C$2:C53) -> -1.774180594 | I53: =SUM(D$2:D53) -> -0.270012628
A54: 0.4254712492 | B54: -0.5131526247 | C54: 0.1165982454 | D54: -0.1752020026 | E54: 53 | F54: =SUM(A$2:A54) -> -2.659964311 | G54: =SUM(B$2:B54) -> 1.239817446 | H54: =SUM(C$2:C54) -> -1.657582348 | I54: =SUM(D$2:D54) -> -0.4452146306
A55: -0.7859511272 | B55: 0.07664543143 | C55: -0.2600098504 | D55: 0.008154956288 | E55: 54 | F55: =SUM(A$2:A55) -> -3.445915438 | G55: =SUM(B$2:B55) -> 1.316462878 | H55: =SUM(C$2:C55) -> -1.917592199 | I55: =SUM(D$2:D55) -> -0.4370596743
A56: 0.6680209431 | B56: 0.7109931458 | C56: 0.192002316 | D56: 0.2053615536 | E56: 55 | F56: =SUM(A$2:A56) -> -2.777894495 | G56: =SUM(B$2:B56) -> 2.027456023 | H56: =SUM(C$2:C56) -> -1.725589883 | I56: =SUM(D$2:D56) -> -0.2316981207
A57: -0.09758325062 | B57: -0.173042878 | C57: -0.04600941566 | D57: -0.06946837361 | E57: 56 | F57: =SUM(A$2:A57) -> -2.875477746 | G57: =SUM(B$2:B57) -> 1.854413145 | H57: =SUM(C$2:C57) -> -1.771599298 | I57: =SUM(D$2:D57) -> -0.3011664943
A58: 0.5992618441 | B58: 0.5125641118 | C58: 0.1706264244 | D58: 0.1436737541 | E58: 57 | F58: =SUM(A$2:A58) -> -2.276215902 | G58: =SUM(B$2:B58) -> 2.366977257 | H58: =SUM(C$2:C58) -> -1.600972874 | I58: =SUM(D$2:D58) -> -0.1574927401
A59: -0.5460035159 | B59: 0.05988244495 | C59: -0.1854147177 | D59: 0.002943663727 | E59: 58 | F59: =SUM(A$2:A59) -> -2.822219417 | G59: =SUM(B$2:B59) -> 2.426859702 | H59: =SUM(C$2:C59) -> -1.786387592 | I59: =SUM(D$2:D59) -> -0.1545490764
A60: 0.9235604185 | B60: -0.9163576071 | C60: 0.2714446617 | D60: -0.3005507361 | E60: 59 | F60: =SUM(A$2:A60) -> -1.898658999 | G60: =SUM(B$2:B60) -> 1.510502095 | H60: =SUM(C$2:C60) -> -1.51494293 | I60: =SUM(D$2:D60) -> -0.4550998125
A61: 0.474908504 | B61: -0.8039991636 | C61: 0.1319673444 | D61: -0.2656206405 | E61: 60 | F61: =SUM(A$2:A61) -> -1.423750495 | G61: =SUM(B$2:B61) -> 0.7065029314 | H61: =SUM(C$2:C61) -> -1.382975586 | I61: =SUM(D$2:D61) -> -0.720720453
A62: 0.2265330299 | B62: -0.2836139362 | C62: 0.05475214991 | D62: -0.1038428053 | E62: 61 | F62: =SUM(A$2:A62) -> -1.197217465 | G62: =SUM(B$2:B62) -> 0.4228889951 | H62: =SUM(C$2:C62) -> -1.328223436 | I62: =SUM(D$2:D62) -> -0.8245632583
A63: -0.2666126807 | B63: 0.8568176586 | C63: -0.09855743941 | D63: 0.2506956115 | E63: 62 | F63: =SUM(A$2:A63) -> -1.463830146 | G63: =SUM(B$2:B63) -> 1.279706654 | H63: =SUM(C$2:C63) -> -1.426780875 | I63: =SUM(D$2:D63) -> -0.5738676468
A64: 0.4537908135 | B64: -0.4537353892 | C64: 0.1254022574 | D64: -0.1567303181 | E64: 63 | F64: =SUM(A$2:A64) -> -1.010039332 | G64: =SUM(B$2:B64) -> 0.8259712645 | H64: =SUM(C$2:C64) -> -1.301378618 | I64: =SUM(D$2:D64) -> -0.7305979649
A65: -0.5137922528 | B65: 0.5006840468 | C65: -0.1754008508 | D65: 0.1399804687 | E65: 64 | F65: =SUM(A$2:A65) -> -1.523831585 | G65: =SUM(B$2:B65) -> 1.326655311 | H65: =SUM(C$2:C65) -> -1.476779468 | I65: =SUM(D$2:D65) -> -0.5906174962
A66: 0.5941586871 | B66: -0.5058744877 | C66: 0.1690399503 | D66: -0.1729393687 | E66: 65 | F66: =SUM(A$2:A66) -> -0.929672898 | G66: =SUM(B$2:B66) -> 0.8207808237 | H66: =SUM(C$2:C66) -> -1.307739518 | I66: =SUM(D$2:D66) -> -0.7635568649
A67: =RAND()*2-1 -> -0.04706890094 | B67: 0.8982169164 | C67: =(A67+$K$1)*$K$3 -> -0.03030546846 | D67: =(B67+$K$1)*$K$3 -> 0.2635658506 | E67: 66 | F67: =SUM(A$2:A67) -> -0.9767417989 | G67: =SUM(B$2:B67) -> 1.71899774 | H67: =SUM(C$2:C67) -> -1.338044987 | I67: =SUM(D$2:D67) -> -0.4999910143
A68: -0.6828631534 | B68: -0.4557924487 | C68: -0.2279617669 | D68: -0.1573698186 | E68: 67 | F68: =SUM(A$2:A68) -> -1.659604952 | G68: =SUM(B$2:B68) -> 1.263205291 | H68: =SUM(C$2:C68) -> -1.566006753 | I68: =SUM(D$2:D68) -> -0.6573608329
A69: -0.3232888517 | B69: 0.5634693906 | C69: -0.1161769793 | D69: 0.1594992338 | E69: 68 | F69: =SUM(A$2:A69) -> -1.982893804 | G69: =SUM(B$2:B69) -> 1.826674682 | H69: =SUM(C$2:C69) -> -1.682183733 | I69: =SUM(D$2:D69) -> -0.4978615992
A70: -0.5369126359 | B70: 0.8599691372 | C70: -0.1825885366 | D70: 0.251675346 | E70: 69 | F70: =SUM(A$2:A70) -> -2.51980644 | G70: =SUM(B$2:B70) -> 2.686643819 | H70: =SUM(C$2:C70) -> -1.864772269 | I70: =SUM(D$2:D70) -> -0.2461862532
A71: -0.6710377323 | B71: -0.3425167648 | C71: -0.2242854692 | D71: -0.1221545705 | E71: 70 | F71: =SUM(A$2:A71) -> -3.190844172 | G71: =SUM(B$2:B71) -> 2.344127054 | H71: =SUM(C$2:C71) -> -2.089057738 | I71: =SUM(D$2:D71) -> -0.3683408236
A72: 0.6552356367 | B72: 0.7399448223 | C72: 0.1880276082 | D72: 0.2143620773 | E72: 71 | F72: =SUM(A$2:A72) -> -2.535608536 | G72: =SUM(B$2:B72) -> 3.084071877 | H72: =SUM(C$2:C72) -> -1.90103013 | I72: =SUM(D$2:D72) -> -0.1539787463
A73: -0.08537305418 | B73: -0.9936306593 | C73: -0.04221349863 | D73: -0.3245734532 | E73: 72 | F73: =SUM(A$2:A73) -> -2.62098159 | G73: =SUM(B$2:B73) -> 2.090441217 | H73: =SUM(C$2:C73) -> -1.943243629 | I73: =SUM(D$2:D73) -> -0.4785521996
A74: 0.805182878 | B74: -0.119763804 | C74: 0.2346433437 | D74: -0.05290492637 | E74: 73 | F74: =SUM(A$2:A74) -> -1.815798712 | G74: =SUM(B$2:B74) -> 1.970677413 | H74: =SUM(C$2:C74) -> -1.708600285 | I74: =SUM(D$2:D74) -> -0.5314571259
A75: -0.3723945044 | B75: -0.6683161412 | C75: -0.1314429895 | D75: -0.2234393784 | E75: 74 | F75: =SUM(A$2:A75) -> -2.188193216 | G75: =SUM(B$2:B75) -> 1.302361272 | H75: =SUM(C$2:C75) -> -1.840043275 | I75: =SUM(D$2:D75) -> -0.7548965044
A76: 0.6914921051 | B76: 0.9453592959 | C76: 0.1992990523 | D76: 0.2782215166 | E76: 75 | F76: =SUM(A$2:A76) -> -1.496701111 | G76: =SUM(B$2:B76) -> 2.247720568 | H76: =SUM(C$2:C76) -> -1.640744222 | I76: =SUM(D$2:D76) -> -0.4766749878
A77: -0.943768782 | B77: -0.4294009706 | C77: -0.3090723472 | D77: -0.1491652118 | E77: 76 | F77: =SUM(A$2:A77) -> -2.440469893 | G77: =SUM(B$2:B77) -> 1.818319597 | H77: =SUM(C$2:C77) -> -1.94981657 | I77: =SUM(D$2:D77) -> -0.6258401995
A78: -0.6290672573 | B78: 0.4800805972 | C78: -0.2112376495 | D78: 0.1335752494 | E78: 77 | F78: =SUM(A$2:A78) -> -3.06953715 | G78: =SUM(B$2:B78) -> 2.298400195 | H78: =SUM(C$2:C78) -> -2.161054219 | I78: =SUM(D$2:D78) -> -0.4922649501
A79: -0.7950688839 | B79: 0.02129888725 | C79: -0.262844387 | D79: -0.009051227965 | E79: 78 | F79: =SUM(A$2:A79) -> -3.864606034 | G79: =SUM(B$2:B79) -> 2.319699082 | H79: =SUM(C$2:C79) -> -2.423898606 | I79: =SUM(D$2:D79) -> -0.5013161781
A80: -0.6939731373 | B80: 0.2861322123 | C80: -0.2314156488 | D80: 0.07328039824 | E80: 79 | F80: =SUM(A$2:A80) -> -4.558579171 | G80: =SUM(B$2:B80) -> 2.605831294 | H80: =SUM(C$2:C80) -> -2.655314255 | I80: =SUM(D$2:D80) -> -0.4280357798
A81: 0.5838259373 | B81: 0.9846886713 | C81: 0.1658276956 | D81: 0.2904482688 | E81: 80 | F81: =SUM(A$2:A81) -> -3.974753234 | G81: =SUM(B$2:B81) -> 3.590519965 | H81: =SUM(C$2:C81) -> -2.489486559 | I81: =SUM(D$2:D81) -> -0.137587511
A82: -0.2552291466 | B82: 0.2337181023 | C82: -0.09501851593 | D82: 0.05698585179 | E82: 81 | F82: =SUM(A$2:A82) -> -4.229982381 | G82: =SUM(B$2:B82) -> 3.824238068 | H82: =SUM(C$2:C82) -> -2.584505075 | I82: =SUM(D$2:D82) -> -0.08060165923
A83: -0.9799263727 | B83: -0.3578035712 | C83: -0.3203130521 | D83: -0.1269069468 | E83: 82 | F83: =SUM(A$2:A83) -> -5.209908753 | G83: =SUM(B$2:B83) -> 3.466434496 | H83: =SUM(C$2:C83) -> -2.904818127 | I83: =SUM(D$2:D83) -> -0.2075086061
A84: 0.766352555 | B84: -0.4781738682 | C84: 0.2225717374 | D84: -0.1643277748 | E84: 83 | F84: =SUM(A$2:A84) -> -4.443556198 | G84: =SUM(B$2:B84) -> 2.988260628 | H84: =SUM(C$2:C84) -> -2.68224639 | I84: =SUM(D$2:D84) -> -0.3718363808
A85: 0.3773125881 | B85: -0.5468993579 | C85: 0.1016266368 | D85: -0.1856932178 | E85: 84 | F85: =SUM(A$2:A85) -> -4.06624361 | G85: =SUM(B$2:B85) -> 2.44136127 | H85: =SUM(C$2:C85) -> -2.580619753 | I85: =SUM(D$2:D85) -> -0.5575295987
A86: 0.1653026247 | B86: 0.7512539322 | C86: 0.03571678558 | D86: 0.2178778637 | E86: 85 | F86: =SUM(A$2:A86) -> -3.900940986 | G86: =SUM(B$2:B86) -> 3.192615203 | H86: =SUM(C$2:C86) -> -2.544902968 | I86: =SUM(D$2:D86) -> -0.339651735
A87: 0.3892770918 | B87: 0.07848810067 | C87: 0.1053461727 | D87: 0.008727806986 | E87: 86 | F87: =SUM(A$2:A87) -> -3.511663894 | G87: =SUM(B$2:B87) -> 3.271103303 | H87: =SUM(C$2:C87) -> -2.439556795 | I87: =SUM(D$2:D87) -> -0.330923928
A88: 0.09181520455 | B88: 0.6822627203 | C88: 0.01287094922 | D88: 0.1964298127 | E88: 87 | F88: =SUM(A$2:A88) -> -3.419848689 | G88: =SUM(B$2:B88) -> 3.953366024 | H88: =SUM(C$2:C88) -> -2.426685846 | I88: =SUM(D$2:D88) -> -0.1344941153
A89: 0.6434730482 | B89: 0.5277065821 | C89: 0.184370844 | D89: 0.1483812592 | E89: 88 | F89: =SUM(A$2:A89) -> -2.776375641 | G89: =SUM(B$2:B89) -> 4.481072606 | H89: =SUM(C$2:C89) -> -2.242315002 | I89: =SUM(D$2:D89) -> 0.01388714391
A90: -0.4880137373 | B90: -0.5547378094 | C90: -0.1673868023 | D90: -0.1881300428 | E90: 89 | F90: =SUM(A$2:A90) -> -3.264389378 | G90: =SUM(B$2:B90) -> 3.926334796 | H90: =SUM(C$2:C90) -> -2.409701804 | I90: =SUM(D$2:D90) -> -0.1742428989
A91: 0.3803776407 | B91: 0.8319768305 | C91: 0.1025795032 | D91: 0.2429730721 | E91: 90 | F91: =SUM(A$2:A91) -> -2.884011738 | G91: =SUM(B$2:B91) -> 4.758311627 | H91: =SUM(C$2:C91) -> -2.307122301 | I91: =SUM(D$2:D91) -> 0.06873017323
A92: -0.6895415917 | B92: 0.200811215 | C92: -0.2300379659 | D92: 0.04675572858 | E92: 91 | F92: =SUM(A$2:A92) -> -3.573553329 | G92: =SUM(B$2:B92) -> 4.959122842 | H92: =SUM(C$2:C92) -> -2.537160267 | I92: =SUM(D$2:D92) -> 0.1154859018
A93: -0.4644936429 | B93: -0.1529927437 | C93: -0.1600748538 | D93: -0.06323516953 | E93: 92 | F93: =SUM(A$2:A93) -> -4.038046972 | G93: =SUM(B$2:B93) -> 4.806130098 | H93: =SUM(C$2:C93) -> -2.697235121 | I93: =SUM(D$2:D93) -> 0.05225073229
A94: 0.4695417292 | B94: -0.9959327642 | C94: 0.1302989165 | D94: -0.3252891337 | E94: 93 | F94: =SUM(A$2:A94) -> -3.568505243 | G94: =SUM(B$2:B94) -> 3.810197334 | H94: =SUM(C$2:C94) -> -2.566936204 | I94: =SUM(D$2:D94) -> -0.2730384014
A95: -0.7775351556 | B95: -0.0326702932 | C95: -0.2573934855 | D95: -0.02582921612 | E95: 94 | F95: =SUM(A$2:A95) -> -4.346040399 | G95: =SUM(B$2:B95) -> 3.777527041 | H95: =SUM(C$2:C95) -> -2.82432969 | I95: =SUM(D$2:D95) -> -0.2988676175
A96: 0.1825173894 | B96: -0.6140837427 | C96: 0.04106852736 | D96: -0.2065795608 | E96: 95 | F96: =SUM(A$2:A96) -> -4.163523009 | G96: =SUM(B$2:B96) -> 3.163443298 | H96: =SUM(C$2:C96) -> -2.783261162 | I96: =SUM(D$2:D96) -> -0.5054471784
A97: 0.3055969556 | B97: 0.6232690062 | C97: 0.07933161543 | D97: 0.1780897929 | E97: 96 | F97: =SUM(A$2:A97) -> -3.857926054 | G97: =SUM(B$2:B97) -> 3.786712304 | H97: =SUM(C$2:C97) -> -2.703929547 | I97: =SUM(D$2:D97) -> -0.3273573854
A98: -0.1300755993 | B98: 0.9249793042 | C98: -0.05611066671 | D98: 0.2718857662 | E98: 97 | F98: =SUM(A$2:A98) -> -3.988001653 | G98: =SUM(B$2:B98) -> 4.711691608 | H98: =SUM(C$2:C98) -> -2.760040213 | I98: =SUM(D$2:D98) -> -0.05547161925
A99: -0.5366520271 | B99: -0.5718608126 | C99: -0.1825075183 | D99: -0.1934532577 | E99: 98 | F99: =SUM(A$2:A99) -> -4.52465368 | G99: =SUM(B$2:B99) -> 4.139830796 | H99: =SUM(C$2:C99) -> -2.942547732 | I99: =SUM(D$2:D99) -> -0.248924877
A100: 0.6480560982 | B100: -0.9469050742 | C100: 0.1857956268 | D100: -0.3100473606 | E100: 99 | F100: =SUM(A$2:A100) -> -3.876597582 | G100: =SUM(B$2:B100) -> 3.192925722 | H100: =SUM(C$2:C100) -> -2.756752105 | I100: =SUM(D$2:D100) -> -0.5589722376
A101: 0.9401724278 | B101: 0.145867365 | C101: 0.2766090184 | D101: 0.02967473428 | E101: 100 | F101: =SUM(A$2:A101) -> -2.936425154 | G101: =SUM(B$2:B101) -> 3.338793087 | H101: =SUM(C$2:C101) -> -2.480143087 | I101: =SUM(D$2:D101) -> -0.5292975033
A102: -0.9276019322 | B102: 0.3081552321 | C102: -0.3040463822 | D102: 0.08012693475 | E102: 101 | F102: =SUM(A$2:A102) -> -3.864027086 | G102: =SUM(B$2:B102) -> 3.646948319 | H102: =SUM(C$2:C102) -> -2.784189469 | I102: =SUM(D$2:D102) -> -0.4491705686
A103: 0.605878152 | B103: 0.6941725504 | C103: 0.1726833083 | D103: 0.2001323516 | E103: 102 | F103: =SUM(A$2:A103) -> -3.258148934 | G103: =SUM(B$2:B103) -> 4.341120869 | H103: =SUM(C$2:C103) -> -2.611506161 | I103: =SUM(D$2:D103) -> -0.249038217
A104: 0.9729881224 | B104: 0.5802079569 | C104: 0.2868107915 | D104: 0.1647029346 | E104: 103 | F104: =SUM(A$2:A104) -> -2.285160812 | G104: =SUM(B$2:B104) -> 4.921328826 | H104: =SUM(C$2:C104) -> -2.324695369 | I104: =SUM(D$2:D104) -> -0.08433528245
A105: -0.8916715211 | B105: -0.04401118358 | C105: -0.2928763031 | D105: -0.02935488249 | E105: 104 | F105: =SUM(A$2:A105) -> -3.176832333 | G105: =SUM(B$2:B105) -> 4.877317642 | H105: =SUM(C$2:C105) -> -2.617571672 | I105: =SUM(D$2:D105) -> -0.1136901649
A106: -0.6072474626 | B106: -0.04154715008 | C106: -0.2044542918 | D106: -0.0285888615 | E106: 105 | F106: =SUM(A$2:A106) -> -3.784079796 | G106: =SUM(B$2:B106) -> 4.835770492 | H106: =SUM(C$2:C106) -> -2.822025964 | I106: =SUM(D$2:D106) -> -0.1422790264
A107: -0.4945192856 | B107: 0.4690351818 | C107: -0.1694092531 | D107: 0.1301414406 | E107: 106 | F107: =SUM(A$2:A107) -> -4.278599081 | G107: =SUM(B$2:B107) -> 5.304805674 | H107: =SUM(C$2:C107) -> -2.991435217 | I107: =SUM(D$2:D107) -> -0.01213758584
A108: -0.4916142853 | B108: 0.3549455265 | C108: -0.1685061439 | D108: 0.09467314425 | E108: 107 | F108: =SUM(A$2:A108) -> -4.770213367 | G108: =SUM(B$2:B108) -> 5.659751201 | H108: =SUM(C$2:C108) -> -3.159941361 | I108: =SUM(D$2:D108) -> 0.0825355584
A109: 0.6721038598 | B109: -0.2353209705 | C109: 0.1932716168 | D109: -0.08882944395 | E109: 108 | F109: =SUM(A$2:A109) -> -4.098109507 | G109: =SUM(B$2:B109) -> 5.42443023 | H109: =SUM(C$2:C109) -> -2.966669744 | I109: =SUM(D$2:D109) -> -0.006293885545
A110: -0.7635420464 | B110: -0.4903733957 | C110: -0.2530432949 | D110: -0.1681203751 | E110: 109 | F110: =SUM(A$2:A110) -> -4.861651553 | G110: =SUM(B$2:B110) -> 4.934056834 | H110: =SUM(C$2:C110) -> -3.219713039 | I110: =SUM(D$2:D110) -> -0.1744142606
A111: 0.6204129852 | B111: -0.7347577098 | C111: 0.1772019105 | D111: -0.244094794 | E111: 110 | F111: =SUM(A$2:A111) -> -4.241238568 | G111: =SUM(B$2:B111) -> 4.199299124 | H111: =SUM(C$2:C111) -> -3.042511129 | I111: =SUM(D$2:D111) -> -0.4185090546
A112: -0.1827175624 | B112: 0.3664929908 | C112: -0.07247604833 | D112: 0.09826303051 | E112: 111 | F112: =SUM(A$2:A112) -> -4.42395613 | G112: =SUM(B$2:B112) -> 4.565792115 | H112: =SUM(C$2:C112) -> -3.114987177 | I112: =SUM(D$2:D112) -> -0.3202460241
A113: 0.3708649362 | B113: -0.004791041728 | C113: 0.0996221849 | D113: -0.01716208894 | E113: 112 | F113: =SUM(A$2:A113) -> -4.053091194 | G113: =SUM(B$2:B113) -> 4.561001074 | H113: =SUM(C$2:C113) -> -3.015364992 | I113: =SUM(D$2:D113) -> -0.337408113
A114: -0.5764556532 | B114: 0.6802029347 | C114: -0.194881706 | D114: 0.1957894647 | E114: 113 | F114: =SUM(A$2:A114) -> -4.629546847 | G114: =SUM(B$2:B114) -> 5.241204008 | H114: =SUM(C$2:C114) -> -3.210246698 | I114: =SUM(D$2:D114) -> -0.1416186484
A115: 0.6419356572 | B115: 0.5866726813 | C115: 0.1838928985 | D115: 0.166712694 | E115: 114 | F115: =SUM(A$2:A115) -> -3.98761119 | G115: =SUM(B$2:B115) -> 5.82787669 | H115: =SUM(C$2:C115) -> -3.0263538 | I115: =SUM(D$2:D115) -> 0.02509404562
A116: -0.9134340147 | B116: -0.966910485 | C116: -0.299641847 | D116: -0.316266661 | E116: 115 | F116: =SUM(A$2:A116) -> -4.901045205 | G116: =SUM(B$2:B116) -> 4.860966205 | H116: =SUM(C$2:C116) -> -3.325995647 | I116: =SUM(D$2:D116) -> -0.2911726154
A117: -0.6993853674 | B117: 0.6670523048 | C117: -0.2330982079 | D117: 0.1917011848 | E117: 116 | F117: =SUM(A$2:A117) -> -5.600430572 | G117: =SUM(B$2:B117) -> 5.528018509 | H117: =SUM(C$2:C117) -> -3.559093854 | I117: =SUM(D$2:D117) -> -0.0994714306
A118: -0.9504644092 | B118: -0.138932067 | C118: -0.3111538899 | D118: -0.0588639735 | E118: 117 | F118: =SUM(A$2:A118) -> -6.550894981 | G118: =SUM(B$2:B118) -> 5.389086442 | H118: =SUM(C$2:C118) -> -3.870247744 | I118: =SUM(D$2:D118) -> -0.1583354041
A119: -0.8422489767 | B119: -0.4263897408 | C119: -0.2775117773 | D119: -0.1482290779 | E119: 118 | F119: =SUM(A$2:A119) -> -7.393143958 | G119: =SUM(B$2:B119) -> 4.962696701 | H119: =SUM(C$2:C119) -> -4.147759522 | I119: =SUM(D$2:D119) -> -0.306564482
A120: -0.4268180179 | B120: 0.1709147611 | C120: -0.1483622211 | D120: 0.03746149169 | E120: 119 | F120: =SUM(A$2:A120) -> -7.819961976 | G120: =SUM(B$2:B120) -> 5.133611463 | H120: =SUM(C$2:C120) -> -4.296121743 | I120: =SUM(D$2:D120) -> -0.2691029903
A121: 0.2404667877 | B121: -0.4935448889 | C121: 0.05908388929 | D121: -0.1691063318 | E121: 120 | F121: =SUM(A$2:A121) -> -7.579495188 | G121: =SUM(B$2:B121) -> 4.640066574 | H121: =SUM(C$2:C121) -> -4.237037854 | I121: =SUM(D$2:D121) -> -0.4382093221
A122: -0.4100122395 | B122: 0.6934549638 | C122: -0.1431376253 | D122: 0.1999092676 | E122: 121 | F122: =SUM(A$2:A122) -> -7.989507428 | G122: =SUM(B$2:B122) -> 5.333521537 | H122: =SUM(C$2:C122) -> -4.380175479 | I122: =SUM(D$2:D122) -> -0.2383000545
A123: -0.1946928416 | B123: 0.7507522832 | C123: -0.07619893407 | D123: 0.2177219106 | E123: 122 | F123: =SUM(A$2:A123) -> -8.184200269 | G123: =SUM(B$2:B123) -> 6.084273821 | H123: =SUM(C$2:C123) -> -4.456374413 | I123: =SUM(D$2:D123) -> -0.02057814389
A124: -0.5904189887 | B124: 0.5315957794 | C124: -0.1992226404 | D124: 0.1495903364 | E124: 123 | F124: =SUM(A$2:A124) -> -8.774619258 | G124: =SUM(B$2:B124) -> 6.6158696 | H124: =SUM(C$2:C124) -> -4.655597053 | I124: =SUM(D$2:D124) -> 0.1290121925
A125: -0.1211666423 | B125: 0.02118246471 | C125: -0.05334104202 | D125: -0.009087421509 | E125: 124 | F125: =SUM(A$2:A125) -> -8.8957859 | G125: =SUM(B$2:B125) -> 6.637052065 | H125: =SUM(C$2:C125) -> -4.708938095 | I125: =SUM(D$2:D125) -> 0.119924771
A126: -0.3913355527 | B126: 0.1885376025 | C126: -0.1373313999 | D126: 0.04294009671 | E126: 125 | F126: =SUM(A$2:A126) -> -9.287121453 | G126: =SUM(B$2:B126) -> 6.825589667 | H126: =SUM(C$2:C126) -> -4.846269495 | I126: =SUM(D$2:D126) -> 0.1628648677
A127: -0.4796516871 | B127: -0.9583785307 | C127: -0.1647872005 | D127: -0.3136142393 | E127: 126 | F127: =SUM(A$2:A127) -> -9.76677314 | G127: =SUM(B$2:B127) -> 5.867211137 | H127: =SUM(C$2:C127) -> -5.011056696 | I127: =SUM(D$2:D127) -> -0.1507493716
A128: 0.3437648257 | B128: 0.2601852397 | C128: 0.09119727776 | D128: 0.06521397968 | E128: 127 | F128: =SUM(A$2:A128) -> -9.423008314 | G128: =SUM(B$2:B128) -> 6.127396376 | H128: =SUM(C$2:C128) -> -4.919859418 | I128: =SUM(D$2:D128) -> -0.08553539192
A129: -0.3333412844 | B129: -0.1741098282 | C129: -0.1193020887 | D129: -0.06980006805 | E129: 128 | F129: =SUM(A$2:A129) -> -9.756349599 | G129: =SUM(B$2:B129) -> 5.953286548 | H129: =SUM(C$2:C129) -> -5.039161507 | I129: =SUM(D$2:D129) -> -0.15533546
A130: -0.5713500882 | B130: 0.6156169311 | C130: -0.1932944832 | D130: 0.1757109088 | E130: 129 | F130: =SUM(A$2:A130) -> -10.32769969 | G130: =SUM(B$2:B130) -> 6.568903479 | H130: =SUM(C$2:C130) -> -5.23245599 | I130: =SUM(D$2:D130) -> 0.02037544886
A131: =RAND()*2-1 -> 0.4389742463 | B131: -0.5135764247 | C131: =(A131+$K$1)*$K$3 -> 0.1207960695 | D131: =(B131+$K$1)*$K$3 -> -0.1753337539 | E131: 130 | F131: =SUM(A$2:A131) -> -9.888725441 | G131: =SUM(B$2:B131) -> 6.055327054 | H131: =SUM(C$2:C131) -> -5.11165992 | I131: =SUM(D$2:D131) -> -0.1549583051
A132: -0.4497288476 | B132: -0.2243872827 | C132: -0.1554847608 | D132: -0.08543036908 | E132: 131 | F132: =SUM(A$2:A132) -> -10.33845429 | G132: =SUM(B$2:B132) -> 5.830939772 | H132: =SUM(C$2:C132) -> -5.267144681 | I132: =SUM(D$2:D132) -> -0.2403886741
A133: 0.3056087805 | B133: -0.01407092633 | C133: 0.07933529156 | D133: -0.02004702795 | E133: 132 | F133: =SUM(A$2:A133) -> -10.03284551 | G133: =SUM(B$2:B133) -> 5.816868845 | H133: =SUM(C$2:C133) -> -5.18780939 | I133: =SUM(D$2:D133) -> -0.2604357021
A134: -0.08901845063 | B134: -0.0218818592 | C134: -0.04334678281 | D134: -0.0224752979 | E134: 133 | F134: =SUM(A$2:A134) -> -10.12186396 | G134: =SUM(B$2:B134) -> 5.794986986 | H134: =SUM(C$2:C134) -> -5.231156173 | I134: =SUM(D$2:D134) -> -0.282911
A135: 0.5047040264 | B135: 0.3085059225 | C135: 0.1412302036 | D135: 0.08023595773 | E135: 134 | F135: =SUM(A$2:A135) -> -9.617159932 | G135: =SUM(B$2:B135) -> 6.103492909 | H135: =SUM(C$2:C135) -> -5.089925969 | I135: =SUM(D$2:D135) -> -0.2026750423
A136: -0.7266552461 | B136: 0.9599405239 | C136: -0.2415758927 | D136: 0.2827545421 | E136: 135 | F136: =SUM(A$2:A136) -> -10.34381518 | G136: =SUM(B$2:B136) -> 7.063433433 | H136: =SUM(C$2:C136) -> -5.331501862 | I136: =SUM(D$2:D136) -> 0.08007949985
A137: -0.9683650022 | B137: 0.02261599254 | C137: -0.3167188427 | D137: -0.008641765067 | E137: 136 | F137: =SUM(A$2:A137) -> -11.31218018 | G137: =SUM(B$2:B137) -> 7.086049425 | H137: =SUM(C$2:C137) -> -5.648220704 | I137: =SUM(D$2:D137) -> 0.07143773479
A138: 0.6301631161 | B138: -0.2994251662 | C138: 0.1802330401 | D138: -0.1087582149 | E138: 137 | F138: =SUM(A$2:A138) -> -10.68201706 | G138: =SUM(B$2:B138) -> 6.786624259 | H138: =SUM(C$2:C138) -> -5.467987664 | I138: =SUM(D$2:D138) -> -0.0373204801
A139: 0.8403384201 | B139: -0.2171157556 | C139: 0.2455725307 | D139: -0.08316979008 | E139: 138 | F139: =SUM(A$2:A139) -> -9.841678644 | G139: =SUM(B$2:B139) -> 6.569508503 | H139: =SUM(C$2:C139) -> -5.222415133 | I139: =SUM(D$2:D139) -> -0.1204902702
A140: 0.181420058 | B140: -0.8672649285 | C140: 0.04072738798 | D140: -0.2852887593 | E140: 139 | F140: =SUM(A$2:A140) -> -9.660258586 | G140: =SUM(B$2:B140) -> 5.702243575 | H140: =SUM(C$2:C140) -> -5.181687745 | I140: =SUM(D$2:D140) -> -0.4057790295
A141: -0.168391266 | B141: -0.7115254599 | C141: -0.06802227622 | D141: -0.2368723309 | E141: 140 | F141: =SUM(A$2:A141) -> -9.828649852 | G141: =SUM(B$2:B141) -> 4.990718115 | H141: =SUM(C$2:C141) -> -5.249710022 | I141: =SUM(D$2:D141) -> -0.6426513604
A142: 0.5962482139 | B142: -0.3108134465 | C142: 0.1696895443 | D142: -0.1122986139 | E142: 141 | F142: =SUM(A$2:A142) -> -9.232401638 | G142: =SUM(B$2:B142) -> 4.679904669 | H142: =SUM(C$2:C142) -> -5.080020477 | I142: =SUM(D$2:D142) -> -0.7549499743
A143: 0.8621364593 | B143: 0.4591216497 | C143: 0.2523491251 | D143: 0.1270595127 | E143: 142 | F143: =SUM(A$2:A143) -> -8.370265179 | G143: =SUM(B$2:B143) -> 5.139026318 | H143: =SUM(C$2:C143) -> -4.827671352 | I143: =SUM(D$2:D143) -> -0.6278904616
A144: -0.3192650568 | B144: 0.6993918626 | C144: -0.1149260582 | D144: 0.2017549361 | E144: 143 | F144: =SUM(A$2:A144) -> -8.689530236 | G144: =SUM(B$2:B144) -> 5.838418181 | H144: =SUM(C$2:C144) -> -4.942597411 | I144: =SUM(D$2:D144) -> -0.4261355255
A145: -0.01525481578 | B145: 0.01718110324 | C145: -0.02041507658 | D145: -0.01033136842 | E145: 144 | F145: =SUM(A$2:A145) -> -8.704785052 | G145: =SUM(B$2:B145) -> 5.855599284 | H145: =SUM(C$2:C145) -> -4.963012487 | I145: =SUM(D$2:D145) -> -0.4364668939
A146: -0.7211820635 | B146: 0.3526386923 | C146: -0.2398743847 | D146: 0.09395599354 | E146: 145 | F146: =SUM(A$2:A146) -> -9.425967115 | G146: =SUM(B$2:B146) -> 6.208237976 | H146: =SUM(C$2:C146) -> -5.202886872 | I146: =SUM(D$2:D146) -> -0.3425109004
A147: 0.6932943278 | B147: -0.7419747303 | C147: 0.1998593289 | D147: -0.2463384279 | E147: 146 | F147: =SUM(A$2:A147) -> -8.732672788 | G147: =SUM(B$2:B147) -> 5.466263246 | H147: =SUM(C$2:C147) -> -5.003027543 | I147: =SUM(D$2:D147) -> -0.5888493283
A148: -0.07631324391 | B148: -0.3793316004 | C148: -0.03939697653 | D148: -0.1335996002 | E148: 147 | F148: =SUM(A$2:A148) -> -8.808986031 | G148: =SUM(B$2:B148) -> 5.086931646 | H148: =SUM(C$2:C148) -> -5.042424519 | I148: =SUM(D$2:D148) -> -0.7224489286
A149: -0.07991529022 | B149: 0.9480823603 | C149: -0.04051678398 | D149: 0.2790680654 | E149: 148 | F149: =SUM(A$2:A149) -> -8.888901322 | G149: =SUM(B$2:B149) -> 6.035014006 | H149: =SUM(C$2:C149) -> -5.082941303 | I149: =SUM(D$2:D149) -> -0.4433808632
A150: 0.1547219618 | B150: 0.4580655034 | C150: 0.03242745942 | D150: 0.1267311769 | E150: 149 | F150: =SUM(A$2:A150) -> -8.73417936 | G150: =SUM(B$2:B150) -> 6.493079509 | H150: =SUM(C$2:C150) -> -5.050513844 | I150: =SUM(D$2:D150) -> -0.3166496862
A151: 0.6894511927 | B151: 0.9415405101 | C151: 0.1986645716 | D151: 0.277034329 | E151: 150 | F151: =SUM(A$2:A151) -> -8.044728167 | G151: =SUM(B$2:B151) -> 7.434620019 | H151: =SUM(C$2:C151) -> -4.851849272 | I151: =SUM(D$2:D151) -> -0.03961535724
A152: -0.7406447362 | B152: 0.9841839615 | C152: -0.2459249582 | D152: 0.2902913642 | E152: 151 | F152: =SUM(A$2:A152) -> -8.785372903 | G152: =SUM(B$2:B152) -> 8.418803981 | H152: =SUM(C$2:C152) -> -5.097774231 | I152: =SUM(D$2:D152) -> 0.2506760069
A153: -0.6563464749 | B153: -0.644936719 | C153: -0.2197182376 | D153: -0.2161711623 | E153: 152 | F153: =SUM(A$2:A153) -> -9.441719378 | G153: =SUM(B$2:B153) -> 7.773867262 | H153: =SUM(C$2:C153) -> -5.317492468 | I153: =SUM(D$2:D153) -> 0.03450484462
A154: -0.7694698819 | B154: 0.101772658 | C154: -0.2548861458 | D154: 0.01596653144 | E154: 153 | F154: =SUM(A$2:A154) -> -10.21118926 | G154: =SUM(B$2:B154) -> 7.87563992 | H154: =SUM(C$2:C154) -> -5.572378614 | I154: =SUM(D$2:D154) -> 0.05047137606
A155: -0.2396005421 | B155: -0.7809431924 | C155: -0.09015988108 | D155: -0.2584529791 | E155: 154 | F155: =SUM(A$2:A155) -> -10.4507898 | G155: =SUM(B$2:B155) -> 7.094696728 | H155: =SUM(C$2:C155) -> -5.662538495 | I155: =SUM(D$2:D155) -> -0.207981603
A156: -0.05887277695 | B156: -0.162805657 | C156: -0.03397506822 | D156: -0.06628581698 | E156: 155 | F156: =SUM(A$2:A156) -> -10.50966258 | G156: =SUM(B$2:B156) -> 6.931891071 | H156: =SUM(C$2:C156) -> -5.696513563 | I156: =SUM(D$2:D156) -> -0.27426742
A157: 0.02583008555 | B157: -0.525687041 | C157: -0.007642564893 | D157: -0.1790987134 | E157: 156 | F157: =SUM(A$2:A157) -> -10.48383249 | G157: =SUM(B$2:B157) -> 6.406204029 | H157: =SUM(C$2:C157) -> -5.704156128 | I157: =SUM(D$2:D157) -> -0.4533661334
A158: 0.3761839278 | B158: -0.5557888693 | C158: 0.1012757579 | D158: -0.1884567973 | E158: 157 | F158: =SUM(A$2:A158) -> -10.10764857 | G158: =SUM(B$2:B158) -> 5.85041516 | H158: =SUM(C$2:C158) -> -5.60288037 | I158: =SUM(D$2:D158) -> -0.6418229307
A159: 0.03573042769 | B159: -0.3073918617 | C159: -0.004564737479 | D159: -0.1112349085 | E159: 158 | F159: =SUM(A$2:A159) -> -10.07191814 | G159: =SUM(B$2:B159) -> 5.543023298 | H159: =SUM(C$2:C159) -> -5.607445108 | I159: =SUM(D$2:D159) -> -0.7530578392
A160: -0.8318963764 | B160: -0.4936927553 | C160: -0.2742933515 | D160: -0.1691523006 | E160: 159 | F160: =SUM(A$2:A160) -> -10.90381451 | G160: =SUM(B$2:B160) -> 5.049330543 | H160: =SUM(C$2:C160) -> -5.881738459 | I160: =SUM(D$2:D160) -> -0.9222101398
A161: 0.2051746679 | B161: -0.9386725948 | C161: 0.04811224282 | D161: -0.3074880399 | E161: 160 | F161: =SUM(A$2:A161) -> -10.69863985 | G161: =SUM(B$2:B161) -> 4.110657948 | H161: =SUM(C$2:C161) -> -5.833626217 | I161: =SUM(D$2:D161) -> -1.22969818
A162: 0.7276552401 | B162: -0.9677307528 | C162: 0.2105414807 | D162: -0.3165216666 | E162: 161 | F162: =SUM(A$2:A162) -> -9.970984607 | G162: =SUM(B$2:B162) -> 3.142927195 | H162: =SUM(C$2:C162) -> -5.623084736 | I162: =SUM(D$2:D162) -> -1.546219846
A163: -0.08250551376 | B163: 0.1724335241 | C163: -0.04132203505 | D163: 0.03793364609 | E163: 162 | F163: =SUM(A$2:A163) -> -10.05349012 | G163: =SUM(B$2:B163) -> 3.31536072 | H163: =SUM(C$2:C163) -> -5.664406771 | I163: =SUM(D$2:D163) -> -1.5082862
A164: -0.1434398631 | B164: -0.1810868031 | C164: -0.06026536127 | D164: -0.07196907639 | E164: 163 | F164: =SUM(A$2:A164) -> -10.19692998 | G164: =SUM(B$2:B164) -> 3.134273916 | H164: =SUM(C$2:C164) -> -5.724672132 | I164: =SUM(D$2:D164) -> -1.580255277
A165: -0.1854237935 | B165: -0.8654005357 | C165: -0.07331736393 | D165: -0.2847091552 | E165: 164 | F165: =SUM(A$2:A165) -> -10.38235378 | G165: =SUM(B$2:B165) -> 2.268873381 | H165: =SUM(C$2:C165) -> -5.797989496 | I165: =SUM(D$2:D165) -> -1.864964432
A166: -0.6005134734 | B166: 0.7981913417 | C166: -0.2023608231 | D166: 0.2324698085 | E166: 165 | F166: =SUM(A$2:A166) -> -10.98286725 | G166: =SUM(B$2:B166) -> 3.067064722 | H166: =SUM(C$2:C166) -> -6.000350319 | I166: =SUM(D$2:D166) -> -1.632494623
A167: -0.490157481 | B167: -0.5021451016 | C167: -0.1680532513 | D167: -0.1717799737 | E167: 166 | F167: =SUM(A$2:A167) -> -11.47302473 | G167: =SUM(B$2:B167) -> 2.564919621 | H167: =SUM(C$2:C167) -> -6.16840357 | I167: =SUM(D$2:D167) -> -1.804274597
A168: 0.2996988711 | B168: 0.1877973564 | C168: 0.07749801352 | D168: 0.04270996832 | E168: 167 | F168: =SUM(A$2:A168) -> -11.17332586 | G168: =SUM(B$2:B168) -> 2.752716977 | H168: =SUM(C$2:C168) -> -6.090905557 | I168: =SUM(D$2:D168) -> -1.761564629
A169: -0.9888943579 | B169: 0.3127728705 | C169: -0.3231010275 | D169: 0.08156247042 | E169: 168 | F169: =SUM(A$2:A169) -> -12.16222022 | G169: =SUM(B$2:B169) -> 3.065489848 | H169: =SUM(C$2:C169) -> -6.414006584 | I169: =SUM(D$2:D169) -> -1.680002158
A170: 0.1917034328 | B170: 0.5755668272 | C170: 0.04392429293 | D170: 0.1632600959 | E170: 169 | F170: =SUM(A$2:A170) -> -11.97051679 | G170: =SUM(B$2:B170) -> 3.641056675 | H170: =SUM(C$2:C170) -> -6.370082291 | I170: =SUM(D$2:D170) -> -1.516742062
A171: 0.1454533482 | B171: -0.8767770533 | C171: 0.02954602436 | D171: -0.2882458974 | E171: 170 | F171: =SUM(A$2:A171) -> -11.82506344 | G171: =SUM(B$2:B171) -> 2.764279622 | H171: =SUM(C$2:C171) -> -6.340536267 | I171: =SUM(D$2:D171) -> -1.80498796
A172: -0.5864876411 | B172: -0.8940686112 | C172: -0.1980004595 | D172: -0.2936215127 | E172: 171 | F172: =SUM(A$2:A172) -> -12.41155108 | G172: =SUM(B$2:B172) -> 1.87021101 | H172: =SUM(C$2:C172) -> -6.538536727 | I172: =SUM(D$2:D172) -> -2.098609472
A173: 0.7471624175 | B173: -0.9006675789 | C173: 0.2166058899 | D173: -0.2956730058 | E173: 172 | F173: =SUM(A$2:A173) -> -11.66438866 | G173: =SUM(B$2:B173) -> 0.9695434314 | H173: =SUM(C$2:C173) -> -6.321930837 | I173: =SUM(D$2:D173) -> -2.394282478
A174: -0.3325555286 | B174: 0.1160769588 | C174: -0.1190578123 | D174: 0.02041346556 | E174: 173 | F174: =SUM(A$2:A174) -> -11.99694419 | G174: =SUM(B$2:B174) -> 1.08562039 | H174: =SUM(C$2:C174) -> -6.440988649 | I174: =SUM(D$2:D174) -> -2.373869013
A175: 0.7108615575 | B175: -0.07172370147 | C175: 0.2053206453 | D175: -0.03797017538 | E175: 174 | F175: =SUM(A$2:A175) -> -11.28608263 | G175: =SUM(B$2:B175) -> 1.013896689 | H175: =SUM(C$2:C175) -> -6.235668004 | I175: =SUM(D$2:D175) -> -2.411839188
A176: -0.1118467916 | B176: 0.3128221823 | C176: -0.05044367832 | D176: 0.08157780049 | E176: 175 | F176: =SUM(A$2:A176) -> -11.39792942 | G176: =SUM(B$2:B176) -> 1.326718871 | H176: =SUM(C$2:C176) -> -6.286111682 | I176: =SUM(D$2:D176) -> -2.330261388
A177: 0.7214015808 | B177: 0.7179272159 | C177: 0.2085973374 | D177: 0.2075172237 | E177: 176 | F177: =SUM(A$2:A177) -> -10.67652784 | G177: =SUM(B$2:B177) -> 2.044646087 | H177: =SUM(C$2:C177) -> -6.077514345 | I177: =SUM(D$2:D177) -> -2.122744164
A178: 0.3034761559 | B178: -0.06241925394 | C178: 0.07867229927 | D178: -0.03507760023 | E178: 177 | F178: =SUM(A$2:A178) -> -10.37305169 | G178: =SUM(B$2:B178) -> 1.982226833 | H178: =SUM(C$2:C178) -> -5.998842045 | I178: =SUM(D$2:D178) -> -2.157821764
A179: -0.4974560727 | B179: 0.8579113806 | C179: -0.1703222441 | D179: 0.2510356288 | E179: 178 | F179: =SUM(A$2:A179) -> -10.87050776 | G179: =SUM(B$2:B179) -> 2.840138214 | H179: =SUM(C$2:C179) -> -6.169164289 | I179: =SUM(D$2:D179) -> -1.906786135
A180: 0.2604503114 | B180: 0.8677032516 | C180: 0.06529638541 | D180: 0.2540797346 | E180: 179 | F180: =SUM(A$2:A180) -> -10.61005745 | G180: =SUM(B$2:B180) -> 3.707841465 | H180: =SUM(C$2:C180) -> -6.103867904 | I180: =SUM(D$2:D180) -> -1.652706401
A181: -0.4929806168 | B181: -0.7615819262 | C181: -0.1689309103 | D181: -0.252433931 | E181: 180 | F181: =SUM(A$2:A181) -> -11.10303806 | G181: =SUM(B$2:B181) -> 2.946259539 | H181: =SUM(C$2:C181) -> -6.272798814 | I181: =SUM(D$2:D181) -> -1.905140332
A182: -0.05007074567 | B182: -0.5539996078 | C182: -0.03123868469 | D182: -0.18790055 | E182: 181 | F182: =SUM(A$2:A182) -> -11.15310881 | G182: =SUM(B$2:B182) -> 2.392259931 | H182: =SUM(C$2:C182) -> -6.304037499 | I182: =SUM(D$2:D182) -> -2.093040882
A183: -0.746360549 | B183: -0.8934358332 | C183: -0.2477018953 | D183: -0.2934247941 | E183: 182 | F183: =SUM(A$2:A183) -> -11.89946936 | G183: =SUM(B$2:B183) -> 1.498824098 | H183: =SUM(C$2:C183) -> -6.551739394 | I183: =SUM(D$2:D183) -> -2.386465676
A184: 0.134924989 | B184: -0.2443172403 | C184: 0.02627295842 | D184: -0.09162621252 | E184: 183 | F184: =SUM(A$2:A184) -> -11.76454437 | G184: =SUM(B$2:B184) -> 1.254506858 | H184: =SUM(C$2:C184) -> -6.525466436 | I184: =SUM(D$2:D184) -> -2.478091888
A185: 0.9698245983 | B185: -0.1318254703 | C185: 0.2858273122 | D185: -0.05665466822 | E185: 184 | F185: =SUM(A$2:A185) -> -10.79471977 | G185: =SUM(B$2:B185) -> 1.122681387 | H185: =SUM(C$2:C185) -> -6.239639124 | I185: =SUM(D$2:D185) -> -2.534746557
A186: -0.7304069662 | B186: 0.739846532 | C186: -0.2427422309 | D186: 0.2143315207 | E186: 185 | F186: =SUM(A$2:A186) -> -11.52512674 | G186: =SUM(B$2:B186) -> 1.862527919 | H186: =SUM(C$2:C186) -> -6.482381355 | I186: =SUM(D$2:D186) -> -2.320415036
A187: -0.8871485825 | B187: 0.05080258574 | C187: -0.2914702078 | D187: 0.0001209087942 | E187: 186 | F187: =SUM(A$2:A187) -> -12.41227532 | G187: =SUM(B$2:B187) -> 1.913330505 | H187: =SUM(C$2:C187) -> -6.773851562 | I187: =SUM(D$2:D187) -> -2.320294127
A188: 0.748955198 | B188: -0.6773107247 | C188: 0.2171632311 | D188: -0.2262356228 | E188: 187 | F188: =SUM(A$2:A188) -> -11.66332012 | G188: =SUM(B$2:B188) -> 1.23601978 | H188: =SUM(C$2:C188) -> -6.556688331 | I188: =SUM(D$2:D188) -> -2.54652975
A189: 0.9747020542 | B189: 0.6993564494 | C189: 0.2873436202 | D189: 0.2017439268 | E189: 188 | F189: =SUM(A$2:A189) -> -10.68861807 | G189: =SUM(B$2:B189) -> 1.93537623 | H189: =SUM(C$2:C189) -> -6.269344711 | I189: =SUM(D$2:D189) -> -2.344785823
A190: -0.9023814624 | B190: 0.9257419264 | C190: -0.2962058195 | D190: 0.2721228509 | E190: 189 | F190: =SUM(A$2:A190) -> -11.59099953 | G190: =SUM(B$2:B190) -> 2.861118156 | H190: =SUM(C$2:C190) -> -6.565550531 | I190: =SUM(D$2:D190) -> -2.072662972
A191: -0.242092253 | B191: 0.3215637808 | C191: -0.09093450643 | D191: 0.08429539664 | E191: 190 | F191: =SUM(A$2:A191) -> -11.83309178 | G191: =SUM(B$2:B191) -> 3.182681937 | H191: =SUM(C$2:C191) -> -6.656485037 | I191: =SUM(D$2:D191) -> -1.988367576
A192: -0.9863400334 | B192: -0.519562003 | C192: -0.3223069368 | D192: -0.177194556 | E192: 191 | F192: =SUM(A$2:A192) -> -12.81943182 | G192: =SUM(B$2:B192) -> 2.663119934 | H192: =SUM(C$2:C192) -> -6.978791974 | I192: =SUM(D$2:D192) -> -2.165562131
A193: 0.7266383097 | B193: 0.1105594716 | C193: 0.2102253365 | D193: 0.01869818411 | E193: 192 | F193: =SUM(A$2:A193) -> -12.09279351 | G193: =SUM(B$2:B193) -> 2.773679406 | H193: =SUM(C$2:C193) -> -6.768566637 | I193: =SUM(D$2:D193) -> -2.146863947
A194: -0.898020965 | B194: -0.1095255749 | C194: -0.294850224 | D194: -0.04972205634 | E194: 193 | F194: =SUM(A$2:A194) -> -12.99081447 | G194: =SUM(B$2:B194) -> 2.664153831 | H194: =SUM(C$2:C194) -> -7.063416861 | I194: =SUM(D$2:D194) -> -2.196586004
A195: =RAND()*2-1 -> -0.7627927438 | B195: -0.2138904661 | C195: =(A195+$K$1)*$K$3 -> -0.252810351 | D195: =(B195+$K$1)*$K$3 -> -0.08216710915 | E195: 194 | F195: =SUM(A$2:A195) -> -13.75360722 | G195: =SUM(B$2:B195) -> 2.450263365 | H195: =SUM(C$2:C195) -> -7.316227212 | I195: =SUM(D$2:D195) -> -2.278753113
A196: 0.2002753802 | B196: 0.1148252515 | C196: 0.04658914778 | D196: 0.02002433366 | E196: 195 | F196: =SUM(A$2:A196) -> -13.55333184 | G196: =SUM(B$2:B196) -> 2.565088616 | H196: =SUM(C$2:C196) -> -7.269638065 | I196: =SUM(D$2:D196) -> -2.258728779
A197: 0.1178745437 | B197: 0.9047507816 | C197: 0.02097230041 | D197: 0.2655971046 | E197: 196 | F197: =SUM(A$2:A197) -> -13.43545729 | G197: =SUM(B$2:B197) -> 3.469839398 | H197: =SUM(C$2:C197) -> -7.248665764 | I197: =SUM(D$2:D197) -> -1.993131675
A198: 0.3178249437 | B198: -0.9973043386 | C198: 0.08313306355 | D198: -0.32571553 | E198: 197 | F198: =SUM(A$2:A198) -> -13.11763235 | G198: =SUM(B$2:B198) -> 2.472535059 | H198: =SUM(C$2:C198) -> -7.165532701 | I198: =SUM(D$2:D198) -> -2.318847205
A199: 0.3390310093 | B199: -0.9323760473 | C199: 0.08972562461 | D199: -0.3055305635 | E199: 198 | F199: =SUM(A$2:A199) -> -12.77860134 | G199: =SUM(B$2:B199) -> 1.540159012 | H199: =SUM(C$2:C199) -> -7.075807076 | I199: =SUM(D$2:D199) -> -2.624377768
A200: -0.5062171786 | B200: 0.4866307625 | C200: -0.1730459048 | D200: 0.1356115708 | E200: 199 | F200: =SUM(A$2:A200) -> -13.28481852 | G200: =SUM(B$2:B200) -> 2.026789774 | H200: =SUM(C$2:C200) -> -7.248852981 | I200: =SUM(D$2:D200) -> -2.488766197
... 301 more rows

Sheet Sheet2
I1: hit esc to stop
C2: S Xi | M2: S (Yi + d); (normalized to Xi)
M3: correlation (Yi+d, Yj+ d) = | Q3: 0.1
B5: Running sums Independent variables | K5: Running sums with small common component
